bitfinex-derivatives/quotes_SOLF0:USTF0_20251023
["timestamp","ask_amount","ask_price","bid_price","bid_amount"]
[1761216478820,0.47,188.62,188.61,4.84396843]
[1761216479809,2.07166575,188.63,188.61,4.84396843]
[1761216480015,2.07166575,188.63,188.61,2.79]
[1761216480919,1.60166575,188.63,188.61,2.79]
[1761216482123,6.84216575,188.63,188.61,2.79]
[1761216482621,6.37216575,188.63,188.61,2.79]
[1761216483226,6.84216575,188.63,188.61,2.79]
[1761216483517,0.47,188.62,188.59,2.79]
[1761216483816,0.47,188.62,188.6,7.6374732]
[1761216484015,5.134932,188.62,188.61,4.8474732]
[1761216484411,4.664932,188.62,188.61,4.8474732]
[1761216484615,4.664932,188.65,188.61,4.8474732]
[1761216484816,43.92,188.7,188.52,6.55899652]
[1761216484817,1.60166575,188.64,188.62,4.8474732]
[1761216485013,2.07166575,188.64,188.59,2.79]
[1761216485209,48.84398322,188.7,188.54,1.60166575]
[1761216485210,1.60166575,188.62,188.61,2.79]
[1761216485422,1.60166575,188.62,188.61,7.6384763]
[1761216486115,1.60166575,188.63,188.61,7.6384763]
[1761216486316,1.60166575,188.63,188.62,4.8484763]
[1761216488923,1.60166575,188.63,188.62,7.6384763]
[1761216489124,1.60166575,188.63,188.62,4.8484763]
[1761216489316,6.26659775,188.63,188.62,4.8484763]
[1761216489516,6.73659775,188.63,188.62,4.8484763]
[1761216490027,2.07166575,188.63,188.62,4.8484763]
[1761216490325,6.73659775,188.63,188.62,4.8484763]
[1761216495225,6.26659775,188.63,188.55,2.79]
[1761216495429,2.07166575,188.6,188.55,2.79]
[1761216495729,4.664932,188.59,188.55,2.79]
[1761216495928,4.664932,188.58,188.55,2.79]
[1761216496130,4.664932,188.57,188.55,2.79]
[1761216496330,4.664932,188.56,188.55,2.79]
[1761216496530,4.664932,188.59,188.55,2.79]
[1761216496829,4.664932,188.58,188.55,2.79]
[1761216497029,4.664932,188.57,188.55,2.79]
[1761216497228,4.664932,188.56,188.55,2.79]
[1761216497429,4.664932,188.61,188.55,2.79]
[1761216497619,5.134932,188.6,188.55,2.79]
[1761216497823,4.664932,188.59,188.55,2.79]
[1761216498025,4.92398322,188.64,188.55,2.79]
[1761216498026,1.764932,188.58,188.55,2.79]
[1761216498331,1.764932,188.63,188.58,2.79]
[1761216498530,0.47,188.67,188.58,2.79]
[1761216500127,4.7698,188.66,188.6,2.79]
[1761216500321,0.47,188.67,188.6,2.79]
[1761216500723,4.77,188.65,188.6,2.79]
[1761216501124,0.47,188.67,188.6,2.79]
[1761216502031,5.2395,188.67,188.6,2.79]
[1761216502525,0.47,188.67,188.6,2.79]
[1761216503923,4.7698,188.66,188.6,2.79]
[1761216504133,7.4698,188.66,188.6,2.79]
[1761216504632,4.7701,188.65,188.6,2.79]
[1761216504833,7.4701,188.65,188.6,2.79]
[1761216505427,2.89,188.64,188.6,2.79]
[1761216508433,2.89,188.64,188.61,2.67]
[1761216509932,2.85,188.63,188.61,2.67]
[1761216510137,4.7702,188.64,188.57,12.58261592]
[1761216510138,2.85,188.61,188.57,12.58261592]
[1761216510338,4.7702,188.64,188.57,12.58261592]
[1761216510339,7.49267613,188.6,188.57,12.58261592]
[1761216510538,7.49267613,188.63,188.58,2.85]
[1761216510838,4.64267613,188.62,188.58,2.85]
[1761216511039,4.64267613,188.61,188.58,2.85]
[1761216511242,4.64267613,188.6,188.58,2.85]
[1761216511442,4.64267613,188.59,188.58,2.85]
[1761216511642,4.64267613,188.62,188.58,2.85]
[1761216511944,4.64267613,188.61,188.58,2.85]
[1761216512145,4.64267613,188.6,188.58,2.85]
[1761216512345,4.64267613,188.62,188.58,2.85]
[1761216512543,4.64267613,188.61,188.58,2.85]
[1761216512850,4.64267613,188.6,188.58,2.85]
[1761216513048,7.49267613,188.62,188.58,2.85]
[1761216513346,4.64267613,188.61,188.58,2.85]
[1761216513547,4.64267613,188.61,188.59,2.85]
[1761216513745,4.64267613,188.62,188.59,2.85]
[1761216513947,4.64267613,188.61,188.59,2.85]
[1761216514145,4.64267613,188.6,188.59,2.85]
[1761216514342,4.64267613,188.62,188.59,2.85]
[1761216514542,4.64267613,188.64,188.6,4.96091592]
[1761216514748,4.64267613,188.63,188.61,2.85]
[1761216514947,4.64267613,188.64,188.61,2.85]
[1761216515152,4.64267613,188.63,188.61,2.85]
[1761216515350,4.64267613,188.64,188.61,2.85]
[1761216515552,4.64267613,188.63,188.61,2.85]
[1761216515752,4.64267613,188.64,188.61,2.85]
[1761216515949,4.64267613,188.63,188.61,2.85]
[1761216516152,4.64267613,188.64,188.61,2.85]
[1761216516351,4.64267613,188.63,188.61,2.85]
[1761216516552,7.49267613,188.66,188.61,2.85]
[1761216516751,4.64267613,188.65,188.61,2.85]
[1761216516951,4.64267613,188.64,188.61,2.85]
[1761216517153,2.85,188.66,188.62,7.6880811]
[1761216517154,4.64267613,188.63,188.62,7.6880811]
[1761216517352,4.64267613,188.65,188.63,2.85]
[1761216517553,2.85,188.65,188.64,4.8380811]
[1761216517754,7.49441387,188.65,188.64,4.8380811]
[1761216529161,7.49441387,188.65,188.64,4.83575259]
[1761216530760,2.85,188.63,188.59,2.85]
[1761216530963,4.64441387,188.62,188.59,2.85]
[1761216531958,2.85,188.6,188.57,4.96091592]
[1761216532154,2.85,188.59,188.56,7.81091592]
[1761216532955,2.85,188.59,188.56,2.85]
[1761216533355,2.85,188.58,188.55,4.96091592]
[1761216533766,2.85,188.58,188.55,7.81091592]
[1761216533954,2.85,188.58,188.56,2.85]
[1761216536456,7.49441387,188.59,188.56,2.85]
[1761216537866,2.85,188.58,188.56,2.85]
[1761216540361,7.49441387,188.58,188.56,2.85]
[1761216544559,4.64441387,188.58,188.56,2.85]
[1761216544868,2.75,188.58,188.56,2.85]
[1761216545162,7.39441387,188.58,188.56,2.85]
[1761216545768,4.64441387,188.58,188.56,2.85]
[1761216545969,12.16591387,188.59,188.56,2.85]
[1761216546265,43.9,188.61,188.56,2.85]
[1761216546266,4.7709,188.61,188.56,2.85]
[1761216546467,4.62527764,188.62,188.56,2.85]
[1761216546765,7.37527764,188.61,188.56,2.85]
[1761216546961,2.75,188.61,188.56,2.85]
[1761216547166,7.521,188.61,188.56,2.85]
[1761216547366,4.62527764,188.6,188.56,2.85]
[1761216551970,2.75,188.59,188.53,2.76]
[1761216552668,7.5217,188.58,188.54,2.76]
[1761216561673,4.7717,188.58,188.54,2.76]
[1761216561863,7.521,188.61,188.55,2.76]
[1761216562061,2.75,188.59,188.55,2.76]
[1761216563067,7.5215,188.59,188.55,2.76]
[1761216564773,7.5215,188.59,188.55,4.7723]
[1761216564972,7.5215,188.59,188.56,2.76]
[1761216566272,4.7715,188.59,188.56,2.76]
[1761216566673,7.6515,188.59,188.56,2.76]
[1761216568877,2.7,188.57,188.54,2.8]
[1761216571178,12.06144511,188.59,188.54,2.8]
[1761216571479,9.36144511,188.59,188.55,2.8]
[1761216571779,7.28994511,188.58,188.55,2.8]
[1761216571973,2.7,188.58,188.55,2.8]
[1761216574184,7.28994511,188.58,188.55,2.8]
[1761216575381,7.28994511,188.58,188.56,2.8]
[1761216575569,4.58994511,188.58,188.56,2.8]
[1761216575773,7.28994511,188.6,188.56,2.8]
[1761216575976,7.28994511,188.59,188.56,2.8]
[1761216576175,4.58994511,188.58,188.56,2.8]
[1761216576977,4.58994511,188.58,188.56,4.7721]
[1761216577283,4.58994511,188.58,188.57,2.8]
[1761216579488,2.7,188.57,188.56,4.95372514]
[1761216579788,7.28994511,188.57,188.54,12.52622514]
[1761216579985,2.7,188.57,188.55,2.8]
[1761216580378,7.28994511,188.57,188.55,2.8]
[1761216580575,2.7,188.57,188.55,2.8]
[1761216580974,7.28994511,188.57,188.55,7.5723]
[1761216581178,2.7,188.57,188.55,7.5723]
[1761216581584,4.58994511,188.57,188.56,2.8]
[1761216581780,7.28994511,188.6,188.57,2.8]
[1761216581980,7.28994511,188.59,188.57,2.8]
[1761216582181,4.58994511,188.58,188.57,2.8]
[1761216583886,2.7,188.57,188.56,4.772]
[1761216584185,4.58994511,188.6,188.56,7.572]
[1761216584387,7.28994511,188.59,188.56,7.572]
[1761216584687,4.58994511,188.58,188.56,7.572]
[1761216586189,4.58994511,188.58,188.57,2.8]
[1761216592489,7.28994511,188.58,188.56,4.772]
[1761216592688,2.7,188.58,188.56,4.772]
[1761216593085,7.28994511,188.58,188.56,4.772]
[1761216593288,7.28994511,188.57,188.55,9.72602514]
[1761216593487,2.7,188.57,188.55,9.72602514]
[1761216593687,2.7,188.58,188.56,2.8]
[1761216593888,7.28994511,188.58,188.56,2.8]
[1761216594085,2.7,188.58,188.56,2.8]
[1761216594483,2.7,188.57,188.55,12.52602514]
[1761216595293,4.58994511,188.59,188.55,12.52602514]
[1761216595294,7.28994511,188.58,188.56,2.8]
[1761216595495,4.58994511,188.57,188.55,12.52602514]
[1761216595996,4.58994511,188.57,188.56,2.8]
[1761216597192,2.7,188.58,188.56,2.8]
[1761216597394,2.7,188.58,188.56,7.75372514]
[1761216597586,7.28994511,188.58,188.57,5.05939788]
[1761216597788,2.7,188.58,188.57,5.05939788]
[1761216598292,7.28994511,188.58,188.57,5.05939788]
[1761216598592,2.7,188.58,188.57,5.05939788]
[1761216598794,7.28994511,188.58,188.57,10.01312302]
[1761216599101,2.7,188.58,188.57,5.05939788]
[1761216599304,7.28994511,188.58,188.57,5.05939788]
[1761216599595,2.7,188.58,188.57,5.05939788]
[1761216599896,7.36994511,188.58,188.57,5.05939788]
[1761216607701,4.58994511,188.58,188.57,7.67939788]
[1761216607906,4.58994511,188.58,188.57,12.63312302]
[1761216608098,7.36994511,188.6,188.58,2.62]
[1761216608295,2.78,188.6,188.59,5.05939788]
[1761216608598,7.34016046,188.6,188.59,5.05939788]
[1761216610104,2.78,188.6,188.59,5.05939788]
[1761216610297,9.33116046,188.61,188.59,5.05939788]
[1761216610504,2.78,188.63,188.61,2.62]
[1761216610800,4.53602359,188.62,188.61,2.62]
[1761216611003,7.31602359,188.62,188.61,4.87057744]
[1761216612201,2.78,188.62,188.61,7.49057744]
[1761216612389,7.31602359,188.62,188.61,7.49057744]
[1761216614904,7.31602359,188.62,188.61,4.87057744]
[1761216616805,7.31602359,188.62,188.61,7.49057744]
[1761216617202,7.31602359,188.62,188.61,4.87057744]
[1761216617811,4.53602359,188.62,188.61,7.49057744]
[1761216618002,2.78,188.64,188.61,4.87057744]
[1761216618201,2.78,188.63,188.62,4.87057744]
[1761216622213,2.78,188.64,188.62,7.49057744]
[1761216622508,2.78,188.64,188.63,4.87057744]
[1761216627914,2.78,188.64,188.63,7.69057744]
[1761216627915,4.53602359,188.64,188.63,7.69057744]
[1761216628113,7.41,188.65,188.63,7.69057744]
[1761216628315,7.41,188.65,188.64,4.85608567]
[1761216628522,11.94602359,188.65,188.64,4.85608567]
[1761216629621,7.41,188.65,188.64,4.85608567]
[1761216630113,7.41,188.65,188.58,4.95372514]
[1761216630114,2.65,188.62,188.58,2.84]
[1761216631022,2.65,188.62,188.58,4.7716]
[1761216631318,2.65,188.62,188.59,2.84]
[1761216633719,4.7705,188.63,188.59,2.84]
[1761216634429,7.4205,188.63,188.59,2.84]
[1761216635521,11.94604415,188.63,188.59,2.84]
[1761216635818,7.4205,188.63,188.59,2.84]
[1761216636918,11.94606068,188.63,188.59,2.84]
[1761216637122,7.4205,188.63,188.59,2.84]
[1761216637824,2.65,188.62,188.59,2.84]
[1761216638015,4.7705,188.63,188.59,2.84]
[1761216638217,11.94625923,188.63,188.59,2.84]
[1761216638419,7.4205,188.63,188.59,2.84]
[1761216638616,2.65,188.62,188.59,2.84]
[1761216639631,4.7705,188.63,188.6,2.84]
[1761216639825,7.4199,188.65,188.6,2.84]
[1761216640027,2.65,188.64,188.6,2.84]
[1761216640225,2.65,188.64,188.6,7.611]
[1761216640525,2.65,188.64,188.61,2.84]
[1761216641330,9.29582129,188.65,188.61,2.84]
[1761216641530,7.17592129,188.64,188.61,2.84]
[1761216641732,2.65,188.64,188.61,2.84]
[1761216642138,2.65,188.64,188.62,7.6745718]
[1761216642432,2.65,188.64,188.63,4.8345718]
[1761216642633,7.17592129,188.64,188.63,4.8345718]
[1761216644135,2.65,188.64,188.63,4.8345718]
[1761216645128,7.17592129,188.64,188.63,4.8345718]
[1761216645626,2.65,188.64,188.63,4.8345718]
[1761216647733,7.17592129,188.64,188.63,4.8345718]
[1761216649737,2.65,188.64,188.63,4.8345718]
[1761216650932,4.7699,188.65,188.63,7.6745718]
[1761216651127,7.4199,188.65,188.64,4.8345718]
[1761216651333,11.95102048,188.65,188.64,4.8345718]
[1761216652135,4.53112048,188.65,188.64,7.6745718]
[1761216653735,7.18112048,188.65,188.64,7.6745718]
[1761216653932,7.18112048,188.65,188.64,4.8345718]
[1761216655238,2.65,188.65,188.64,4.8345718]
[1761216655438,7.18411576,188.65,188.64,4.8345718]
[1761216655638,4.53411576,188.65,188.64,7.6745718]
[1761216657234,7.18411576,188.65,188.64,4.8345718]
[1761216660546,4.53411576,188.65,188.64,7.6045718]
[1761216660945,7.23411576,188.65,188.64,4.8345718]
[1761216672954,2.7,188.71,188.65,2.77]
[1761216673258,2.7,188.71,188.67,2.77]
[1761216673457,2.50449343,188.7,188.64,4.94724106]
[1761216673658,4.95593266,188.66,188.57,2.77]
[1761216673856,43.84,188.65,188.57,2.77]
[1761216674362,48.79593266,188.65,188.57,2.77]
[1761216676763,4.7702,188.64,188.57,2.77]
[1761216680363,4.7705,188.63,188.57,2.77]
[1761216680564,2.50449343,188.61,188.54,2.77]
[1761216681263,48.6107,188.62,188.54,2.77]
[1761216682769,48.6107,188.62,188.56,2.77]
[1761216684977,4.46749778,188.61,188.56,2.77]
[1761216685463,4.46749778,188.61,188.58,2.84]
[1761216685667,4.46749778,188.61,188.59,4.99355094]
[1761216685866,4.46749778,188.61,188.6,4.99355094]
[1761216686757,43.84,188.62,188.61,2.84]
[1761216686967,43.84,188.62,188.61,7.83355094]
[1761216688067,9.5371,188.71,188.62,2.84]
[1761216688068,4.7696,188.66,188.62,2.84]
[1761216688262,48.6096,188.66,188.63,4.99355094]
[1761216688462,4.46549059,188.65,188.64,4.99355094]
[1761216692368,4.46549059,188.65,188.62,2.84]
[1761216692369,4.7713,188.6,188.57,2.89]
[1761216692568,43.88,188.59,188.54,4.49372238]
[1761216692767,4.4679625,188.58,188.55,2.89]
[1761216693169,43.88,188.59,188.53,4.49372238]
[1761216693674,4.7719,188.58,188.54,2.89]
[1761216694465,43.88,188.59,188.55,4.49372238]
[1761216694674,43.88,188.59,188.56,2.89]
[1761216696074,43.88,188.59,188.54,2.89]
[1761216696275,43.88,188.59,188.56,4.49372238]
[1761216696869,43.88,188.59,188.56,2.89]
[1761216702076,4.63903795,188.58,188.56,2.89]
[1761216702675,4.63907325,188.58,188.56,2.89]
[1761216702876,43.88,188.59,188.56,2.89]
[1761216704782,4.63953793,188.58,188.56,2.89]
[1761216704974,43.88,188.59,188.56,2.89]
[1761216705169,4.63953793,188.58,188.56,2.89]
[1761216707984,43.88,188.59,188.56,2.89]
[1761216708177,4.64022979,188.58,188.56,2.89]
[1761216709283,43.88,188.59,188.56,2.89]
[1761216709789,43.88,188.59,188.57,2.89]
[1761216710183,43.88,188.59,188.58,2.89]
[1761216710384,48.52037869,188.59,188.58,2.89]
[1761216712189,4.64037869,188.59,188.58,2.89]
[1761216712390,43.9,188.62,188.58,2.89]
[1761216712585,4.64037869,188.61,188.58,2.89]
[1761216712784,4.64161429,188.6,188.58,2.89]
[1761216712985,4.64161429,188.61,188.58,2.89]
[1761216713190,4.64161429,188.6,188.58,2.89]
[1761216713384,4.64161429,188.61,188.58,2.89]
[1761216716080,4.64161429,188.6,188.56,2.89]
[1761216716283,4.64161429,188.61,188.56,2.89]
[1761216716486,4.64161429,188.6,188.56,2.89]
[1761216716681,4.64161429,188.61,188.56,2.89]
[1761216716885,4.64161429,188.6,188.56,2.89]
[1761216717083,4.64161429,188.61,188.57,2.89]
[1761216717393,4.64161429,188.6,188.57,2.89]
[1761216717594,4.64161429,188.61,188.57,2.89]
[1761216717891,4.64161429,188.6,188.57,2.89]
[1761216718093,4.64161429,188.61,188.57,2.89]
[1761216718293,4.64161429,188.6,188.57,2.89]
[1761216718496,4.64161429,188.59,188.57,2.89]
[1761216718683,4.64161429,188.61,188.57,2.89]
[1761216718884,4.64161429,188.6,188.58,2.88]
[1761216719087,4.64161429,188.59,188.58,2.88]
[1761216719294,48.50161429,188.62,188.58,2.88]
[1761216719483,4.64161429,188.61,188.58,2.88]
[1761216719793,4.64161429,188.6,188.58,2.88]
[1761216719988,4.64161429,188.59,188.58,2.88]
[1761216720189,4.64161429,188.61,188.58,2.88]
[1761216720384,4.64161429,188.6,188.55,1.60372238]
[1761216720589,4.64161429,188.59,188.55,2.88]
[1761216720791,4.64161429,188.58,188.55,2.88]
[1761216721093,4.64161429,188.57,188.55,2.88]
[1761216721294,4.64161429,188.61,188.55,2.88]
[1761216721597,4.64161429,188.6,188.55,7.6523]
[1761216721795,4.64161429,188.59,188.56,2.88]
[1761216722001,4.64161429,188.58,188.56,2.88]
[1761216722204,4.64161429,188.6,188.56,7.6521]
[1761216722402,4.64161429,188.59,188.56,7.6521]
[1761216722607,4.64161429,188.58,188.53,2.88]
[1761216722802,4.64161429,188.57,188.53,2.88]
[1761216723001,4.64161429,188.59,188.53,2.88]
[1761216723202,4.64161429,188.58,188.53,7.6528]
[1761216723509,4.64161429,188.57,188.54,2.88]
[1761216723806,4.64161429,188.59,188.54,2.88]
[1761216724006,4.64161429,188.58,188.54,2.88]
[1761216724203,4.64161429,188.57,188.54,2.88]
[1761216724408,4.64161429,188.59,188.54,2.88]
[1761216724608,4.64161429,188.58,188.54,2.88]
[1761216724809,4.64161429,188.57,188.54,2.88]
[1761216725010,4.64161429,188.59,188.55,2.88]
[1761216725213,4.64161429,188.58,188.55,2.88]
[1761216725406,4.64161429,188.57,188.55,2.88]
[1761216725607,4.64161429,188.59,188.55,2.88]
[1761216725906,4.64161429,188.58,188.55,2.88]
[1761216726102,4.64161429,188.57,188.55,2.88]
[1761216726307,4.64161429,188.59,188.55,2.88]
[1761216726510,4.64161429,188.58,188.55,2.88]
[1761216726806,4.64161429,188.57,188.55,2.88]
[1761216727007,4.64161429,188.59,188.55,2.88]
[1761216727209,4.64161429,188.58,188.55,2.88]
[1761216727513,4.64161429,188.57,188.55,2.88]
[1761216727706,4.64161429,188.59,188.55,2.88]
[1761216727906,4.64161429,188.58,188.55,2.88]
[1761216728108,4.64161429,188.57,188.55,2.88]
[1761216728314,1.42,188.55,188.44,6.55899652]
[1761216728513,1.42,188.51,188.42,8.1627189]
[1761216728718,6.06161429,188.5,188.42,1.60372238]
[1761216729012,1.42,188.5,188.44,4.7751]
[1761216729400,1.42,188.5,188.42,8.1627189]
[1761216729612,1.42,188.5,188.45,4.7748]
[1761216730012,1.42,188.5,188.43,4.7753]
[1761216730217,1.42,188.49,188.43,7.6553]
[1761216731409,49.09593266,188.54,188.43,2.88]
[1761216731410,1.42,188.47,188.43,2.88]
[1761216733215,1.42,188.47,188.41,7.6559]
[1761216735024,1.42,188.47,188.42,4.7755]
[1761216735323,1.42,188.47,188.43,2.88]
[1761216735522,1.42,188.47,188.42,7.6555]
[1761216737618,1.42,188.47,188.42,2.88]
[1761216737826,1.42,188.45,188.42,2.88]
[1761216738219,1.42,188.45,188.41,2.88]
[1761216738927,1.42,188.45,188.4,2.88]
[1761216741630,1.42,188.45,188.38,1.60372238]
[1761216742827,1.42,188.45,188.38,4.48372238]
[1761216743023,6.1951,188.45,188.38,4.48372238]
[1761216743223,1.42,188.44,188.38,2.88]
[1761216743423,1.42,188.44,188.39,4.48372238]
[1761216743825,1.42,188.44,188.39,2.88]
[1761216744128,1.42,188.42,188.36,2.88]
[1761216745329,6.205,188.45,188.37,2.71]
[1761216746724,6.205,188.45,188.37,7.4869]
[1761216746921,6.205,188.45,188.39,2.51084175]
[1761216747122,1.43,188.44,188.4,2.71]
[1761216747820,1.43,188.43,188.4,2.71]
[1761216748026,1.43,188.43,188.38,2.71]
[1761216748329,1.43,188.41,188.38,2.71]
[1761216748632,1.43,188.41,188.36,2.71]
[1761216750027,1.43,188.39,188.36,2.71]
[1761216750228,1.43,188.39,188.33,2.8]
[1761216751932,6.2065,188.39,188.33,2.8]
[1761216752634,6.2068,188.38,188.33,2.8]
[1761216753831,6.2071,188.37,188.33,2.8]
[1761216754937,4.7771,188.37,188.33,2.8]
[1761216755839,1.43,188.37,188.33,2.8]
[1761216756225,1.43,188.41,188.32,2.51084175]
[1761216756429,1.43,188.41,188.33,2.8]
[1761216757230,6.2063,188.4,188.34,7.5776]
[1761216757630,1.43,188.39,188.35,2.8]
[1761216758731,1.43,188.39,188.32,7.5781]
[1761216759127,1.43,188.39,188.33,2.8]
[1761216760140,6.2066,188.39,188.33,2.8]
[1761216760439,1.43,188.39,188.34,2.8]
[1761216764040,1.43,188.38,188.34,2.8]
[1761216764634,6.2069,188.38,188.34,2.8]
[1761216773147,1.43,188.38,188.34,2.8]
[1761216774248,6.2068,188.38,188.34,2.8]
[1761216775237,4.7768,188.38,188.31,4.7784]
[1761216775440,9.4114724,188.38,188.31,4.7784]
[1761216775641,4.7768,188.38,188.31,4.7784]
[1761216776239,4.7773,188.36,188.29,4.7789]
[1761216776440,4.64896586,188.4,188.27,0.92394695]
[1761216776640,4.64896586,188.39,188.29,2.51084175]
[1761216776842,4.64896586,188.42,188.32,2.51084175]
[1761216777047,4.64896586,188.44,188.32,2.51084175]
[1761216777245,4.64896586,188.43,188.32,2.51084175]
[1761216777447,4.64896586,188.42,188.32,2.51084175]
[1761216777743,4.7763,188.4,188.29,2.51084175]
[1761216777945,9.42526586,188.4,188.29,2.51084175]
[1761216778155,4.64896586,188.39,188.29,2.51084175]
[1761216778344,4.7763,188.4,188.29,2.51084175]
[1761216778852,4.7763,188.4,188.29,9.06983827]
[1761216779049,4.7763,188.4,188.33,4.7779]
[1761216780336,4.7766,188.39,188.33,4.7779]
[1761216780940,9.42556586,188.39,188.33,4.7779]
[1761216781141,4.65581464,188.38,188.33,4.7779]
[1761216781950,4.65581464,188.38,188.31,4.7783]
[1761216782147,4.65581464,188.37,188.25,9.06983827]
[1761216782341,4.95205076,188.42,188.29,4.7788]
[1761216782342,9.43261464,188.38,188.29,4.7788]
[1761216782547,4.65581464,188.37,188.29,4.7788]
[1761216782853,4.65581464,188.37,188.31,4.7784]
[1761216783355,4.7768,188.38,188.27,6.55899652]
[1761216783659,9.43261464,188.38,188.27,6.55899652]
[1761216783856,4.65581464,188.37,188.27,6.55899652]
[1761216784051,4.7768,188.38,188.27,6.55899652]
[1761216784246,9.43261464,188.38,188.27,6.55899652]
[1761216784449,4.65581464,188.37,188.27,6.55899652]
[1761216784752,4.7768,188.38,188.27,6.55899652]
[1761216784957,9.43476991,188.38,188.32,4.7781]
[1761216785163,2.51084175,188.4,188.27,6.55899652]
[1761216785164,4.65796991,188.37,188.27,6.55899652]
[1761216785352,4.65796991,188.39,188.27,6.55899652]
[1761216785651,4.65796991,188.38,188.28,2.51084175]
[1761216785860,4.65796991,188.39,188.31,2.51084175]
[1761216786059,4.65796991,188.43,188.31,2.51084175]
[1761216786355,4.65796991,188.42,188.31,2.51084175]
[1761216786546,4.65796991,188.41,188.3,6.55899652]
[1761216786749,4.65796991,188.4,188.3,6.55899652]
[1761216786948,4.776,188.41,188.35,4.7773]
[1761216787151,4.65796991,188.4,188.35,4.7773]
[1761216787463,4.65796991,188.39,188.35,4.7773]
[1761216787660,4.65796991,188.4,188.35,4.7773]
[1761216787862,4.65796991,188.39,188.35,4.7773]
[1761216788065,4.65796991,188.4,188.35,4.7773]
[1761216788258,4.65796991,188.39,188.35,4.7773]
[1761216788461,4.65796991,188.38,188.35,4.7773]
[1761216788664,4.65796991,188.4,188.35,4.7773]
[1761216788965,4.65796991,188.39,188.35,4.7773]
[1761216789151,4.65796991,188.38,188.35,4.7773]
[1761216789356,4.65796991,188.4,188.35,4.7773]
[1761216789655,4.65796991,188.39,188.35,4.7773]
[1761216789856,4.65796991,188.38,188.35,4.7773]
[1761216790057,4.65796991,188.4,188.35,4.7773]
[1761216790254,4.65796991,188.39,188.35,4.7773]
[1761216790459,4.65796991,188.38,188.35,4.7773]
[1761216790658,4.65796991,188.4,188.35,4.7773]
[1761216790860,4.776,188.41,188.35,4.7773]
[1761216790861,4.65796991,188.39,188.35,4.7773]
[1761216791164,4.65796991,188.38,188.35,4.7773]
[1761216791368,4.65796991,188.4,188.35,4.7773]
[1761216791570,4.65796991,188.39,188.35,4.7773]
[1761216791761,4.65796991,188.38,188.35,4.7773]
[1761216791962,4.65796991,188.4,188.35,4.7773]
[1761216792163,4.65796991,188.39,188.33,4.7778]
[1761216792467,4.65796991,188.38,188.28,6.55899652]
[1761216792667,4.65796991,188.37,188.28,6.55899652]
[1761216792863,4.65796991,188.36,188.28,6.55899652]
[1761216793065,4.65796991,188.35,188.28,6.55899652]
[1761216793268,2.51084175,188.4,188.28,6.55899652]
[1761216793269,4.65796991,188.39,188.28,6.55899652]
[1761216793571,9.43476991,188.38,188.31,4.7784]
[1761216793870,7.16881166,188.37,188.31,4.7784]
[1761216794071,4.65796991,188.36,188.31,4.7784]
[1761216794268,4.65796991,188.35,188.31,4.7784]
[1761216794470,4.65796991,188.34,188.29,4.779]
[1761216794661,2.51084175,188.37,188.26,6.55899652]
[1761216794662,4.65796991,188.33,188.26,6.55899652]
[1761216794863,2.51084175,188.37,188.25,6.55899652]
[1761216794864,4.65796991,188.32,188.25,6.55899652]
[1761216795059,4.65796991,188.31,188.27,4.7794]
[1761216795374,8.51472856,188.33,188.27,4.7794]
[1761216795572,4.65796991,188.32,188.27,4.7794]
[1761216795775,4.65796991,188.31,188.27,4.7794]
[1761216795971,4.65796991,188.32,188.27,4.7794]
[1761216797172,8.51472856,188.33,188.27,4.7794]